bitfinex/quotes_BTCUSD_20240721
["timestamp","ask_amount","ask_price","bid_price","bid_amount"]
[1721566905092,0.00837,67037.0,67036.0,3.50696795]
[1721566907476,0.00837,67037.0,67036.0,3.45697026]
[1721566907687,0.00837,67037.0,67036.0,3.50697026]
[1721566908040,0.00837,67037.0,67036.0,3.50697126]
[1721566911162,0.00837,67037.0,67036.0,3.50698174]
[1721566914328,0.00837,67037.0,67036.0,3.44506708]
[1721566914565,0.00837,67037.0,67036.0,3.50698334]
[1721566914773,0.00837,67037.0,67036.0,3.4450671]
[1721566914990,0.00837,67037.0,67036.0,3.50698336]
[1721566917314,0.00837,67037.0,67036.0,3.50698401]
[1721566917568,0.00837,67037.0,67036.0,3.32123545]
[1721566917802,0.00837,67037.0,67036.0,3.50698441]
[1721566920673,0.00837,67037.0,67036.0,3.50698035]
[1721566922696,0.00837,67037.0,67036.0,4.22698035]
[1721566923152,0.00837,67037.0,67036.0,3.06188132]
[1721566923347,0.00837,67037.0,67036.0,4.22698887]
[1721566923798,0.00837,67037.0,67036.0,4.4253372]
[1721566924414,0.00837,67037.0,67036.0,4.22698619]
[1721566925030,0.00837,67037.0,67036.0,3.45698619]
[1721566925236,0.00837,67037.0,67036.0,3.37978619]
[1721566926271,0.00837,67037.0,67036.0,3.00826215]
[1721566926471,0.00837,67037.0,67036.0,3.31614867]
[1721566929695,0.00837,67037.0,67036.0,3.31614866]
[1721566931156,0.00837,67037.0,67036.0,3.36614866]
[1721566932875,0.00837,67037.0,67036.0,2.51065342]
[1721566933091,0.00837,67037.0,67036.0,3.36614866]
[1721566933302,0.00837,67037.0,67036.0,3.05657656]
[1721566933551,0.00837,67037.0,67036.0,3.36614866]
[1721566934167,0.00837,67037.0,67036.0,3.31614866]
[1721566934559,0.14867,67037.0,67036.0,2.86301008]
[1721566934781,0.14867,67037.0,67036.0,2.32709403]
[1721566934981,0.14867,67037.0,67036.0,2.26517351]
[1721566935742,0.14867,67037.0,67036.0,1.810686]
[1721566935948,0.14867,67037.0,67036.0,2.26524005]
[1721566939137,0.14867,67037.0,67036.0,2.26523442]
[1721566939339,0.08387,67037.0,67036.0,2.26523442]
[1721566939966,0.00837,67037.0,67036.0,2.26523442]
[1721566941744,0.00837,67037.0,67036.0,3.49780021]
[1721566941950,0.00837,67037.0,67036.0,3.57080021]
[1721566942353,0.00837,67037.0,67036.0,3.57079252]
[1721566942777,0.00837,67037.0,67036.0,3.2401025]
[1721566943048,0.00837,67037.0,67036.0,3.57078454]
[1721566944937,0.00837,67037.0,67036.0,3.70503786]
[1721566945543,0.00837,67037.0,67036.0,3.70502922]
[1721566947515,0.00837,67037.0,67036.0,2.86858974]
[1721566947702,0.00837,67037.0,67036.0,3.70502828]
[1721566947901,0.00837,67037.0,67036.0,3.57078123]
[1721566948338,0.00837,67037.0,67036.0,3.70502828]
[1721566948924,0.00837,67037.0,67036.0,3.70502863]
[1721566951259,0.00837,67037.0,67036.0,3.64311013]
[1721566951462,0.00837,67037.0,67036.0,3.57078123]
[1721566951874,0.00837,67037.0,67036.0,4.0337339]
[1721566952047,1e-06,67037.0,67036.0,4.65687165]
[1721566952262,1e-06,67037.0,67036.0,4.34722634]
[1721566952507,1e-06,67037.0,67036.0,4.65679929]
[1721566952710,1e-06,67037.0,67036.0,4.65678893]
[1721566954058,1e-06,67037.0,67036.0,3.80678893]
[1721566954454,1e-06,67037.0,67036.0,4.63678893]
[1721566955304,1e-06,67037.0,67036.0,4.32721842]
[1721566955511,1e-06,67037.0,67036.0,4.63678895]
[1721566955727,1e-06,67037.0,67036.0,4.63678346]
[1721566958555,1e-06,67037.0,67036.0,4.32721291]
[1721566958809,1e-06,67037.0,67036.0,4.63678344]
[1721566961886,1e-06,67037.0,67036.0,4.56086716]
[1721566962161,1e-06,67037.0,67036.0,4.63678114]
[1721566962375,1e-06,67037.0,67036.0,4.63678068]
[1721566963020,1e-06,67037.0,67036.0,4.62278068]
[1721566963245,1e-06,67037.0,67036.0,4.57278068]
[1721566963464,1e-06,67037.0,67036.0,4.62278068]
[1721566963914,0.08866,67047.0,67036.0,4.62278068]
[1721566963915,0.00836,67047.0,67046.0,1.690661]
[1721566964134,0.00836,67047.0,67046.0,2.50826876]
[1721566965115,0.00836,67047.0,67046.0,2.52225303]
[1721566965782,0.00836,67047.0,67046.0,2.53625303]
[1721566966002,0.00836,67047.0,67046.0,2.55025303]
[1721566968194,0.00836,67047.0,67046.0,2.21961254]
[1721566968406,0.00836,67047.0,67046.0,2.55025303]
[1721566968823,0.00836,67047.0,67046.0,2.53625303]
[1721566969044,0.00836,67047.0,67046.0,2.50825303]
[1721566969266,0.00836,67047.0,67046.0,2.52225303]
[1721566969471,0.00836,67047.0,67046.0,2.53625303]
[1721566969679,0.00836,67047.0,67046.0,2.52225303]
[1721566971181,0.00836,67047.0,67046.0,2.53625303]
[1721566971578,0.00836,67047.0,67046.0,2.53623829]
[1721566972372,0.00836,67047.0,67046.0,2.2055978]
[1721566972575,0.00836,67047.0,67046.0,2.53623828]
[1721566973186,0.15106,67047.0,67046.0,2.53623828]
[1721566974469,0.15106,67047.0,67046.0,2.53623779]
[1721566974672,0.15106,67047.0,67046.0,2.20559734]
[1721566975035,0.15106,67047.0,67046.0,2.53623733]
[1721566975881,0.15106,67047.0,67046.0,2.54541513]
[1721566978113,0.15106,67047.0,67046.0,2.54541515]
[1721566980487,0.15106,67047.0,67046.0,2.16493535]
[1721566980692,0.15106,67047.0,67046.0,1.83429535]
[1721566980909,0.15106,67047.0,67046.0,1.83432179]
[1721566981117,0.15106,67047.0,67046.0,1.87902461]
[1721566981324,0.15106,67047.0,67046.0,1.87902954]
[1721566981767,0.15106,67047.0,67046.0,1.8343276]
[1721566982396,0.15106,67047.0,67046.0,1.90138051]
[1721566982607,0.15106,67047.0,67046.0,2.16499453]
[1721566982873,0.08546,67047.0,67046.0,2.16499453]
[1721566983281,0.08546,67047.0,67046.0,2.25439841]
[1721566983486,0.08546,67047.0,67046.0,2.2543914]
[1721566983699,0.08546,67047.0,67046.0,2.25438041]
[1721566983700,0.15106,67047.0,67046.0,2.25438041]
[1721566983909,0.15106,67047.0,67046.0,1.83431369]
[1721566984120,0.15106,67047.0,67046.0,2.25438043]
[1721566984544,0.15106,67047.0,67046.0,1.53601169]
[1721566986881,0.15106,67047.0,67046.0,1.60310825]
[1721566988138,0.15106,67047.0,67046.0,1.93378032]
[1721566988363,0.15106,67047.0,67046.0,1.60310825]
[1721566988577,0.15106,67047.0,67046.0,1.93378066]
[1721566990067,0.15106,67047.0,67046.0,1.93379237]
[1721566991920,0.15106,67047.0,67046.0,1.53602792]
[1721566993364,0.15106,67047.0,67046.0,1.53602927]
[1721566995020,0.15106,67047.0,67046.0,1.86670462]
[1721566995662,0.15106,67047.0,67046.0,1.93380585]
[1721566995867,0.15106,67047.0,67046.0,1.86670462]
[1721566996293,0.15106,67047.0,67046.0,1.86669591]
[1721566996506,0.15106,67047.0,67046.0,1.86669424]
[1721566996717,0.15106,67047.0,67046.0,1.93379769]
[1721566997370,0.15106,67047.0,67046.0,1.86669424]
[1721566998053,0.00836,67047.0,67046.0,2.16499624]
[1721566998294,0.00836,67047.0,67046.0,2.25446718]
[1721566998706,0.00836,67047.0,67046.0,2.16499624]
[1721566999543,0.00836,67047.0,67046.0,1.83431696]
[1721566999757,0.00836,67047.0,67046.0,2.27681611]
[1721566999976,0.00836,67047.0,67046.0,2.16498004]
[1721567000592,0.00836,67047.0,67046.0,2.27681217]
[1721567002316,0.00836,67047.0,67046.0,2.16498004]
[1721567002731,0.00836,67047.0,67046.0,2.27681217]
[1721567002938,0.00836,67047.0,67046.0,2.27679396]
[1721567003157,0.00836,67047.0,67046.0,2.1649708]
[1721567003398,0.00836,67047.0,67046.0,2.16495901]
[1721567003627,0.00836,67047.0,67046.0,2.27678262]
[1721567004488,0.09056,67047.0,67046.0,2.16495901]
[1721567005743,0.09056,67047.0,67046.0,1.85539458]
[1721567005951,0.09056,67047.0,67046.0,2.16497054]
[1721567007842,0.09056,67047.0,67046.0,2.16497226]
[1721567008740,0.15256,67047.0,67046.0,2.16497226]
[1721567009373,0.15256,67047.0,67046.0,2.16497726]
[1721567010281,0.09056,67047.0,67046.0,2.27680944]
[1721567010508,0.09056,67047.0,67046.0,2.16497726]
[1721567010509,0.00836,67047.0,67046.0,2.16497726]
[1721567012733,0.00836,67047.0,67046.0,2.1649772]
[1721567012948,0.00836,67047.0,67046.0,2.27681579]
[1721567013159,0.00836,67047.0,67046.0,2.27679388]
[1721567013371,0.00836,67047.0,67046.0,2.16496211]
[1721567014210,0.00836,67047.0,67046.0,2.27679542]
[1721567014424,0.00836,67047.0,67046.0,2.16496211]
[1721567015681,0.00836,67047.0,67046.0,2.1649536]
[1721567015897,0.00836,67047.0,67046.0,1.52474074]
[1721567016106,0.00836,67047.0,67046.0,2.16494892]
[1721567016323,0.00836,67047.0,67046.0,2.27678877]
[1721567016860,0.00836,67047.0,67046.0,2.16494892]
[1721567017269,0.00836,67047.0,67046.0,2.35339189]
[1721567017463,0.00836,67047.0,67046.0,2.24154892]
[1721567019009,0.00836,67047.0,67046.0,2.241561]
[1721567021060,0.00836,67047.0,67046.0,2.164961]
[1721567022175,0.00836,67047.0,67046.0,2.16496215]
[1721567025355,0.00836,67047.0,67046.0,1.52474074]
[1721567025573,0.00836,67047.0,67046.0,2.16496215]
[1721567025779,0.15246,67047.0,67046.0,1.86666015]
[1721567026420,0.15246,67047.0,67046.0,1.95617285]
[1721567026622,0.15246,67047.0,67046.0,1.86666015]
[1721567027277,0.15246,67047.0,67046.0,1.83866015]
[1721567027489,0.15246,67047.0,67046.0,1.85266015]
[1721567027692,0.15246,67047.0,67046.0,1.86166015]
[1721567028226,0.09096,67047.0,67046.0,1.86166015]
[1721567028428,0.00836,67047.0,67046.0,1.95117285]
[1721567028669,0.00836,67047.0,67046.0,1.96519393]
[1721567029373,0.00836,67047.0,67046.0,1.87569696]
[1721567029962,0.00836,67047.0,67046.0,2.22829896]
[1721567030161,0.00836,67047.0,67046.0,2.34017017]
[1721567031512,0.00836,67047.0,67046.0,2.34917017]
[1721567031717,0.00836,67047.0,67046.0,1.59704074]
[1721567031916,0.00836,67047.0,67046.0,2.34913686]
[1721567032353,0.00836,67047.0,67046.0,2.2253074]
[1721567032565,0.00836,67047.0,67046.0,2.34913796]
[1721567034451,0.08976,67047.0,67046.0,2.28583796]
[1721567035181,0.08976,67047.0,67046.0,1.84331784]
[1721567035386,0.08976,67047.0,67046.0,2.28584408]
[1721567036330,0.08976,67047.0,67046.0,2.2858428]
[1721567038364,0.00836,67047.0,67046.0,2.28584253]
[1721567038786,0.00836,67047.0,67046.0,1.53374074]
[1721567038963,0.00836,67047.0,67046.0,2.28584329]
[1721567039336,0.00836,67047.0,67046.0,2.36834329]
[1721567039541,0.00836,67047.0,67046.0,2.43254329]
[1721567040976,0.00836,67047.0,67046.0,1.68044074]
[1721567041183,0.00836,67047.0,67046.0,2.43253946]
[1721567041595,0.00836,67047.0,67046.0,2.43254018]
[1721567044047,0.00836,67047.0,67046.0,1.68044074]
[1721567044258,0.00836,67047.0,67046.0,2.43251431]
[1721567044458,0.00836,67047.0,67046.0,2.32068186]
[1721567045281,0.00836,67047.0,67046.0,2.43251441]
[1721567045501,0.00836,67047.0,67046.0,2.32068186]
[1721567047280,0.00836,67047.0,67046.0,2.30586442]
[1721567049765,0.00836,67047.0,67046.0,2.41766403]
[1721567050382,0.00836,67047.0,67046.0,2.30586442]
[1721567051199,0.00836,67047.0,67046.0,2.41766195]
[1721567051619,0.00836,67047.0,67046.0,2.4176624]
[1721567052046,0.00836,67047.0,67046.0,2.41766213]
[1721567053580,0.00836,67047.0,67046.0,1.6656233]
[1721567053780,0.00836,67047.0,67046.0,2.33516011]
[1721567054204,0.00836,67047.0,67046.0,2.33516017]
[1721567056805,0.00836,67047.0,67046.0,2.33515981]
[1721567057044,0.00836,67047.0,67046.0,2.33515976]
[1721567060211,0.00836,67047.0,67046.0,2.02558268]
[1721567060437,0.00818046,67047.0,67046.0,2.33515978]
[1721567063510,0.00818046,67047.0,67046.0,2.33510374]
[1721567063978,0.00818046,67047.0,67046.0,2.3351041]
[1721567066337,0.00818046,67047.0,67046.0,2.33510414]
[1721567066539,0.00818046,67047.0,67046.0,1.8927016]
[1721567066775,0.00818046,67047.0,67046.0,2.33511294]
[1721567067959,0.00818046,67047.0,67046.0,1.69487132]
[1721567068223,0.00818046,67047.0,67046.0,2.33511492]
[1721567069675,0.00818046,67047.0,67046.0,2.33603892]
[1721567069882,0.00818046,67047.0,67046.0,2.02646616]
[1721567070087,0.00818046,67047.0,67046.0,2.33604446]
[1721567071489,0.00818046,67047.0,67046.0,2.2242909]
[1721567073205,0.00818046,67047.0,67046.0,2.22427815]
[1721567073658,0.00818046,67047.0,67046.0,1.5840473]
[1721567073871,0.00818046,67047.0,67046.0,2.22426588]
[1721567076432,0.00818046,67047.0,67046.0,1.91469964]
[1721567076660,0.00818046,67047.0,67046.0,2.2242658]
[1721567081041,0.00818046,67047.0,67046.0,2.22426545]
[1721567082855,0.00818046,67047.0,67046.0,1.89361313]
[1721567083069,0.00818046,67047.0,67046.0,2.22426512]
[1721567083224,0.00818046,67047.0,67046.0,1.91469929]
[1721567083436,0.00818046,67047.0,67046.0,2.22426512]
[1721567086048,0.00818046,67047.0,67046.0,1.5840473]
[1721567086243,0.00818046,67047.0,67046.0,2.22426512]
[1721567092929,0.00818046,67047.0,67046.0,1.5840473]
[1721567093129,0.00818046,67047.0,67046.0,2.22426512]
[1721567095676,0.00818046,67047.0,67046.0,1.91469929]
[1721567095851,0.00818046,67047.0,67046.0,2.22426512]
[1721567097438,0.00818046,67047.0,67046.0,2.16006512]
[1721567101446,0.00818046,67047.0,67046.0,1.8504993]
[1721567101649,0.00818046,67047.0,67046.0,2.16006515]
[1721567101863,0.00818046,67047.0,67046.0,1.5198473]
[1721567102082,0.00818046,67047.0,67046.0,2.16006515]
[1721567104246,0.15048046,67047.0,67046.0,1.86176315]
[1721567104506,0.15048046,67047.0,67046.0,1.97356489]
[1721567104714,0.15048046,67047.0,67046.0,1.86179946]
[1721567106491,0.16636451,67047.0,67046.0,1.07844496]
[1721567106705,0.16636451,67047.0,67046.0,0.53405736]
[1721567106915,0.16636451,67047.0,67046.0,0.29609092]
[1721567107134,0.16636451,67047.0,67046.0,0.16175736]
[1721567107340,0.17715671,67047.0,67046.0,0.31090836]
[1721567107567,0.17715671,67047.0,67046.0,0.60923291]
[1721567108137,0.17715671,67047.0,67046.0,0.13377991]
[1721567108341,0.17715671,67047.0,67046.0,0.27393091]
[1721567108681,0.17715671,67047.0,67046.0,0.13877991]
[1721567108840,0.17715671,67047.0,67046.0,0.14477991]
[1721567109035,0.17715671,67047.0,67046.0,0.14777991]
[1721567109247,0.17715671,67047.0,67046.0,0.14177991]
[1721567109456,0.17715671,67047.0,67046.0,0.12477991]
[1721567109694,0.18015671,67047.0,67046.0,0.12577991]
[1721567110141,0.17815671,67047.0,67046.0,0.12577991]
[1721567110317,0.17715671,67047.0,67046.0,0.12477991]
[1721567110534,0.16127266,67047.0,67046.0,0.27393091]
[1721567110804,0.16127266,67047.0,67046.0,0.746679]
[1721567110939,0.10127266,67047.0,67046.0,0.87053626]
[1721567111141,0.10127266,67047.0,67046.0,1.044981]
[1721567111142,0.00818046,67047.0,67046.0,1.044981]
[1721567111404,0.00818046,67047.0,67046.0,1.16882664]
[1721567111589,0.01018046,67047.0,67046.0,1.32320838]
[1721567111995,0.00818046,67047.0,67046.0,1.32320838]
[1721567112237,0.01118046,67047.0,67046.0,1.32420838]
[1721567112927,0.01018046,67047.0,67046.0,1.32320838]
[1721567113123,0.01018046,67047.0,67046.0,1.32620838]
[1721567113486,0.00818046,67047.0,67046.0,1.32620838]
[1721567113693,0.00818046,67047.0,67046.0,1.32546838]
[1721567113884,0.00818046,67047.0,67046.0,1.32546465]
[1721567115622,0.00818046,67047.0,67046.0,1.33246465]
[1721567116045,0.00818046,67047.0,67046.0,1.32546465]
[1721567116598,0.00818046,67047.0,67046.0,1.33546465]
[1721567120369,0.00818046,67047.0,67046.0,1.21162274]
[1721567120569,0.00818046,67047.0,67046.0,1.33546465]
[1721567120779,0.00818046,67047.0,67046.0,1.21162274]
[1721567120925,0.00818046,67047.0,67046.0,1.39546404]
[1721567123419,0.00818046,67047.0,67046.0,1.39546394]
[1721567126510,0.00818046,67047.0,67046.0,1.33546394]
[1721567126718,0.00818046,67047.0,67046.0,1.33546377]
[1721567127188,0.09088046,67047.0,67046.0,1.33546377]
[1721567127380,0.00818046,67047.0,67046.0,1.33546377]
[1721567128633,0.00818046,67047.0,67046.0,1.21162274]
[1721567129662,0.00818046,67047.0,67046.0,1.64862474]
[1721567132023,0.00818046,67047.0,67046.0,1.20862274]
[1721567132476,0.00818046,67047.0,67046.0,1.19862274]
[1721567132708,0.00818046,67047.0,67046.0,1.51092474]
[1721567132938,0.00818046,67047.0,67046.0,1.49992474]
[1721567133158,0.00818046,67047.0,67046.0,1.51092474]
[1721567133385,0.00818046,67047.0,67046.0,1.52492474]
[1721567134732,0.00818046,67047.0,67046.0,1.56956228]
[1721567136119,0.00818046,67047.0,67046.0,1.56956217]
[1721567136585,0.00818046,67047.0,67046.0,1.52492474]
[1721567139521,0.00818046,67047.0,67046.0,1.92253711]
[1721567139756,0.00818046,67047.0,67046.0,1.74088206]
[1721567141734,0.00818046,67047.0,67046.0,3.09446884]
[1721567141963,0.00818046,67047.0,67046.0,2.42587331]
[1721567142192,0.00818046,67047.0,67046.0,2.52587331]
[1721567142447,0.00818046,67047.0,67046.0,2.47587331]
[1721567142699,0.00818046,67047.0,67046.0,2.44787331]
[1721567143143,0.00818046,67047.0,67046.0,2.47587331]
[1721567143619,0.00818046,67047.0,67046.0,2.48987331]
[1721567144307,0.00818046,67047.0,67046.0,2.52587331]
[1721567144986,0.00818046,67047.0,67046.0,2.49787331]
[1721567145240,0.00818046,67047.0,67046.0,2.16722674]
[1721567145485,0.00818046,67047.0,67046.0,2.49783429]
[1721567146399,0.00818046,67047.0,67046.0,2.51183429]
[1721567146628,0.00818046,67047.0,67046.0,2.53983429]
[1721567146867,0.00818046,67047.0,67046.0,2.48983429]
[1721567148317,0.00818046,67047.0,67046.0,2.43983429]
[1721567148573,0.00818046,67047.0,67046.0,2.6012992]
[1721567149077,0.00818046,67047.0,67046.0,2.15922674]
[1721567149319,0.00818046,67047.0,67046.0,2.60129634]
[1721567149560,0.00818046,67047.0,67046.0,2.60129335]
[1721567151468,0.00818046,67047.0,67046.0,2.48983888]
[1721567152193,0.00818046,67047.0,67046.0,3.16983888]
[1721567153161,0.00818046,67047.0,67046.0,3.16983889]
[1721567155402,0.00818046,67047.0,67046.0,3.28125791]
[1721567157031,0.00818046,67047.0,67046.0,2.83922674]
[1721567157269,0.00818046,67047.0,67046.0,3.28125375]
[1721567160593,0.00818046,67047.0,67046.0,3.65268699]
[1721567160800,0.00818046,67047.0,67046.0,3.65266308]
[1721567161209,0.00818046,67047.0,67046.0,3.59075494]
[1721567161418,0.00818046,67047.0,67046.0,3.65266048]
[1721567161618,0.00818046,67047.0,67046.0,3.54127124]
[1721567162613,0.00818046,67047.0,67046.0,3.24296924]
[1721567162813,0.00818046,67047.0,67046.0,3.27019622]
[1721567163013,0.00818046,67047.0,67046.0,3.1810637]
[1721567163425,0.00818046,67047.0,67046.0,3.18110589]
[1721567164417,0.00818046,67047.0,67046.0,3.0482578]
[1721567166725,0.00818046,67047.0,67046.0,3.04829172]
[1721567168313,0.00818046,67047.0,67046.0,2.95910885]
[1721567169314,0.08668046,67047.0,67046.0,2.95910885]
[1721567170452,0.08668046,67047.0,67046.0,3.07063022]
[1721567172575,0.08668046,67047.0,67046.0,2.95910885]
[1721567172995,0.00818046,67047.0,67046.0,2.95910885]
[1721567173170,0.00818046,67047.0,67046.0,2.62847427]
[1721567173374,0.00818046,67047.0,67046.0,2.95910885]
[1721567173780,0.00818046,67047.0,67046.0,3.02450888]
[1721567176452,0.00818046,67047.0,67046.0,3.02450846]
[1721567177317,0.00818046,67047.0,67046.0,2.95910846]
[1721567179690,0.00818046,67047.0,67046.0,2.64955889]
[1721567179898,0.00818046,67047.0,67046.0,2.95910802]
[1721567186191,0.00818046,67047.0,67046.0,2.31892474]
[1721567186391,0.00818046,67047.0,67046.0,2.959108]
[1721567187611,0.00818046,67047.0,67046.0,3.02101782]
[1721567189500,0.00818046,67047.0,67046.0,2.62847386]
[1721567189703,0.00818046,67047.0,67046.0,3.16441781]
[1721567194681,0.00818046,67047.0,67046.0,3.04059816]
[1721567194882,0.00818046,67047.0,67046.0,3.16441781]
[1721567195638,0.00818046,67047.0,67046.0,2.85486875]
[1721567195884,0.00818046,67047.0,67046.0,3.16441818]
[1721567196094,0.00818046,67047.0,67046.0,3.16441852]
[1721567199466,0.00818046,67047.0,67046.0,3.16441872]
[1721567202351,0.00818046,67047.0,67046.0,3.02101872]
[1721567202752,0.00818046,67047.0,67046.0,2.7114692]
[1721567202931,0.00818046,67047.0,67046.0,3.02101871]
[1721567203130,0.00818046,67047.0,67046.0,3.02101873]
[1721567203345,0.00818046,67047.0,67046.0,3.16311873]
[1721567205260,0.00818046,67047.0,67046.0,3.29721221]
[1721567205472,0.00818046,67047.0,67046.0,3.78077638]
[1721567205879,0.00818046,67047.0,67046.0,3.47119421]
[1721567206084,0.00818046,67047.0,67046.0,3.78073092]
[1721567209193,0.00818046,67047.0,67046.0,2.615794]
[1721567209396,0.00818046,67047.0,67046.0,3.78071628]
[1721567211478,0.00818046,67047.0,67046.0,3.31785177]
[1721567211679,0.00818046,67047.0,67046.0,3.78071628]
[1721567211878,0.00818046,67047.0,67046.0,3.31785177]
[1721567212088,0.00818046,67047.0,67046.0,3.78071628]
[1721567212356,0.00818046,67047.0,67046.0,2.615794]
[1721567212563,0.00818046,67047.0,67046.0,3.31785177]
[1721567212766,0.00818046,67047.0,67046.0,3.78071629]
[1721567212967,0.00818046,67047.0,67046.0,3.31785177]
[1721567213175,0.00818046,67047.0,67046.0,3.78071628]
[1721567213400,0.00818046,67047.0,67046.0,3.31785177]
[1721567213585,0.00818046,67047.0,67046.0,3.78071628]
[1721567213794,0.00818046,67047.0,67046.0,3.31785177]
[1721567213999,0.00818046,67047.0,67046.0,3.78071628]
[1721567214245,0.00818046,67047.0,67046.0,3.31785177]
[1721567214452,0.00818046,67047.0,67046.0,3.78071628]
[1721567214627,0.00818046,67047.0,67046.0,3.31785177]
[1721567214831,0.00818046,67047.0,67046.0,3.78071628]
[1721567215057,0.00818046,67047.0,67046.0,3.31785177]
[1721567215231,0.00818046,67047.0,67046.0,3.78071628]
[1721567215535,0.00818046,67047.0,67046.0,3.16308252]
[1721567215743,0.00818046,67047.0,67046.0,3.62594704]
[1721567215985,0.00818046,67047.0,67046.0,3.16308252]
[1721567216194,0.00818046,67047.0,67046.0,3.62594704]
[1721567216401,0.00818046,67047.0,67046.0,3.16308252]
[1721567216542,0.00818046,67047.0,67046.0,3.62594704]
[1721567216779,0.00818046,67047.0,67046.0,3.16308252]
[1721567216977,0.00818046,67047.0,67046.0,3.62594704]
[1721567217233,0.00818046,67047.0,67046.0,3.16308252]
[1721567217431,0.00818046,67047.0,67046.0,3.62594704]
[1721567217639,0.00818046,67047.0,67046.0,3.16308252]
[1721567217836,0.00818046,67047.0,67046.0,3.62594704]
[1721567218038,0.00818046,67047.0,67046.0,3.16308252]
[1721567218240,0.00818046,67047.0,67046.0,3.62594704]
[1721567218473,0.00818046,67047.0,67046.0,3.16308252]
[1721567221532,0.00818046,67047.0,67046.0,2.85354896]
[1721567221742,0.00818046,67047.0,67046.0,3.16308252]
[1721567221948,0.00818046,67047.0,67046.0,2.85354896]
[1721567222161,0.00818046,67047.0,67046.0,3.16308251]
[1721567224496,0.00818046,67047.0,67046.0,3.3132573]
[1721567224734,0.00818046,67047.0,67046.0,3.24011833]
[1721567224960,0.00818046,67047.0,67046.0,3.76632423]
[1721567225189,0.00818046,67047.0,67046.0,3.61155781]
[1721567225404,0.00818046,67047.0,67046.0,3.58355781]
[1721567225811,0.00818046,67047.0,67046.0,3.59755781]
[1721567226073,0.00818046,67047.0,67046.0,3.7383241]
[1721567226506,0.00818046,67047.0,67046.0,3.7523241]
[1721567227963,0.00818046,67047.0,67046.0,3.75232371]
[1721567228923,0.00818046,67047.0,67046.0,3.80232371]
[1721567229656,0.00818046,67047.0,67046.0,3.75232371]
[1721567229855,0.00818046,67047.0,67046.0,3.67514892]
[1721567231203,0.00818046,67047.0,67046.0,3.03499955]
[1721567231416,0.00818046,67047.0,67046.0,3.67514863]
[1721567231619,0.00818046,67047.0,67046.0,3.28262563]
[1721567231820,0.00818046,67047.0,67046.0,3.67514863]
[1721567234740,0.00818046,67047.0,67046.0,3.37684663]
[1721567234974,0.00818046,67047.0,67046.0,3.29654663]
[1721567235201,0.00818046,67047.0,67046.0,3.23474663]
[1721567235632,0.00818046,67047.0,67046.0,3.22074663]
[1721567236038,0.00818046,67047.0,67046.0,3.53304863]
[1721567236240,0.00818046,67047.0,67046.0,3.51904863]
[1721567236531,0.00818046,67047.0,67046.0,3.22074663]
[1721567236771,0.00818046,67047.0,67046.0,3.23474663]
[1721567237491,0.00818046,67047.0,67046.0,3.16161087]
[1721567237745,0.00818046,67047.0,67046.0,3.2347495]
[1721567240506,0.00818046,67047.0,67046.0,3.69761448]
[1721567240768,0.00818046,67047.0,67046.0,3.2347495]
[1721567241020,0.00818046,67047.0,67046.0,3.76018998]
[1721567241267,0.00818046,67047.0,67046.0,3.29733468]
[1721567241519,0.00818046,67047.0,67046.0,3.76018998]
[1721567241764,0.00818046,67047.0,67046.0,3.29733468]
[1721567242023,0.00818046,67047.0,67046.0,3.76018998]
[1721567243224,0.00818046,67047.0,67046.0,4.05849198]
[1721567243763,0.00818046,67047.0,67046.0,3.76018998]
[1721567244214,0.00818046,67047.0,67046.0,4.05848963]
[1721567244644,0.00818046,67047.0,67046.0,4.13708633]
[1721567247060,0.00818046,67047.0,67046.0,2.97219303]
[1721567247474,0.00818046,67047.0,67046.0,4.13706676]
[1721567250644,0.00818046,67047.0,67046.0,4.13706678]
[1721567254260,0.00818046,67047.0,67046.0,2.97218777]
[1721567254463,0.00818046,67047.0,67046.0,4.13706679]
[1721567254873,0.00818046,67047.0,67046.0,3.28170982]
[1721567255079,0.00818046,67047.0,67046.0,4.13706678]
[1721567255283,0.00818046,67047.0,67046.0,3.69756478]
[1721567257185,0.15128046,67047.0,67046.0,2.64628518]
[1721567257400,0.15128046,67047.0,67046.0,1.95275868]
[1721567257615,0.15128046,67047.0,67046.0,1.55445668]
[1721567257798,0.15128046,67047.0,67046.0,1.41407494]
[1721567258256,0.15128046,67047.0,67046.0,1.06946105]
[1721567258677,0.15128046,67047.0,67046.0,1.08346105]
[1721567259308,0.15128046,67047.0,67046.0,1.12815282]
[1721567259905,0.15128046,67047.0,67046.0,1.12715282]
[1721567260117,0.15128046,67047.0,67046.0,0.81762853]
[1721567260347,0.15128046,67047.0,67046.0,1.08252841]
[1721567260831,0.15128046,67047.0,67046.0,1.38083041]
[1721567261790,0.15128046,67047.0,67046.0,1.36683041]
[1721567262201,0.15128046,67047.0,67046.0,1.43303133]
[1721567263498,0.15128046,67047.0,67046.0,1.43302939]
[1721567264565,0.15128046,67047.0,67046.0,1.38082843]
[1721567265814,0.15128046,67047.0,67046.0,1.43302626]
[1721567266725,0.15128046,67047.0,67046.0,1.071241]
[1721567266934,0.15128046,67047.0,67046.0,1.43302283]
[1721567267137,0.08898046,67047.0,67046.0,1.58740457]
[1721567267344,0.08898046,67047.0,67046.0,1.53520647]
[1721567267548,0.08898046,67047.0,67046.0,1.57985112]
[1721567268189,0.08898046,67047.0,67046.0,1.53520647]
[1721567269230,0.08898046,67047.0,67046.0,1.57984624]
[1721567269649,0.08898046,67047.0,67046.0,1.57983078]
[1721567269859,0.08898046,67047.0,67046.0,1.57983081]
[1721567270528,0.08898046,67047.0,67046.0,1.53519102]
[1721567270910,0.08898046,67047.0,67046.0,1.57983032]
[1721567273238,0.08898046,67047.0,67046.0,1.57983074]
[1721567275031,0.00818046,67047.0,67046.0,1.53519144]
[1721567275203,0.00818046,67047.0,67046.0,1.57982925]
[1721567275411,0.00818046,67047.0,67046.0,1.53519144]
[1721567276381,0.00818046,67047.0,67046.0,1.53518672]
[1721567276826,0.00818046,67047.0,67046.0,1.22562274]
[1721567276975,0.00818046,67047.0,67046.0,1.53518721]
[1721567281019,0.00818046,67047.0,67046.0,1.57984191]
[1721567282078,0.00818046,67047.0,67046.0,1.57985098]
[1721567283798,0.08508046,67047.0,67046.0,1.57985098]
[1721567284663,0.14928046,67047.0,67046.0,1.53519051]
[1721567285523,0.16504451,67047.0,67046.0,1.38083013]
[1721567285736,0.16504451,67047.0,67046.0,0.59847265]
[1721567285950,0.14928046,67047.0,67046.0,0.59847771]
[1721567286162,0.14928046,67047.0,67046.0,0.89677971]
[1721567286577,0.14928046,67047.0,67046.0,0.88277971]
[1721567287346,0.14928046,67047.0,67046.0,0.86977971]
[1721567287558,0.14928046,67047.0,67046.0,0.87477971]
[1721567288126,0.14928046,67047.0,67046.0,0.86977971]
[1721567288533,0.14928046,67047.0,67046.0,0.86978179]
[1721567288534,0.15028046,67047.0,67046.0,0.86978179]